bitfinex/quotes_BTCUSD_20220303
["timestamp","ask_amount","ask_price","bid_price","bid_amount"]
[1646312923615,0.003,43710.0,43708.0,0.354764]
[1646312923818,0.003,43710.0,43703.0,0.3]
[1646312924019,0.003,43710.0,43701.0,0.00058425]
[1646312924020,0.23067297,43707.0,43701.0,0.00058425]
[1646312924617,0.23067297,43707.0,43701.0,0.00658425]
[1646312925018,0.35498297,43706.0,43701.0,0.00658425]
[1646312925223,0.367184,43705.0,43701.0,0.00658425]
[1646312925865,0.367184,43705.0,43701.0,0.00058425]
[1646312926066,0.057249,43705.0,43701.0,0.00058425]
[1646312926366,0.00021897,43705.0,43701.0,0.00058425]
[1646312926566,0.00021897,43705.0,43701.0,0.00758425]
[1646312927068,0.00021897,43705.0,43702.0,0.354764]
[1646312927266,0.01,43709.0,43703.0,0.11446195]
[1646312927469,0.00021897,43705.0,43703.0,0.11446195]
[1646312928264,0.00021897,43705.0,43704.0,0.354764]
[1646312928466,0.21288124,43707.0,43701.0,0.00023425]
[1646312928666,0.01,43709.0,43703.0,0.06223521]
[1646312928667,0.00021897,43706.0,43703.0,0.06223521]
[1646312929066,0.00021897,43706.0,43703.0,0.06402638]
[1646312929515,0.01,43709.0,43703.0,0.06402638]
[1646312929720,0.27088995,43709.0,43703.0,0.34371314]
[1646312929922,0.00021124,43707.0,43703.0,0.33871314]
[1646312930118,0.00021124,43707.0,43703.0,0.45317561]
[1646312930318,0.00021124,43707.0,43703.0,0.17348885]
[1646312930719,0.01,43709.0,43704.0,0.354764]
[1646312931019,0.00021124,43707.0,43703.0,0.17948885]
[1646312931219,0.00021124,43707.0,43704.0,0.354764]
[1646312931621,0.00021124,43707.0,43703.0,0.06502638]
[1646312931818,0.00021124,43707.0,43703.0,0.05902638]
[1646312932018,0.003,43710.0,43703.0,0.50902638]
[1646312932225,0.00021124,43707.0,43703.0,0.50902638]
[1646312932618,0.00021124,43707.0,43703.0,0.51602638]
[1646312933261,0.003,43710.0,43703.0,0.51602638]
[1646312933561,0.00021066,43707.0,43705.0,0.00120762]
[1646312934362,0.003,43710.0,43705.0,0.00120762]
[1646312934563,0.003,43710.0,43706.0,0.354764]
[1646312934564,0.00021065,43708.0,43706.0,0.354764]
[1646312934962,0.00021065,43708.0,43705.0,0.00620762]
[1646312935361,0.00021065,43708.0,43706.0,0.354764]
[1646312935563,0.003,43710.0,43706.0,0.354764]
[1646312935764,0.00021065,43709.0,43706.0,0.354764]
[1646312936764,0.003,43710.0,43706.0,0.354764]
[1646312937021,0.00320354,43710.0,43706.0,0.354764]
[1646312937525,0.00320354,43710.0,43705.0,0.00120762]
[1646312938027,0.040421,43706.0,43705.0,0.00120762]
[1646312938427,0.086321,43706.0,43705.0,0.00120762]
[1646312938623,0.386321,43706.0,43705.0,0.00120762]
[1646312938822,0.386321,43706.0,43692.0,0.01142]
[1646312938823,0.23723964,43694.0,43692.0,0.01142]
[1646312939024,0.0459,43698.0,43692.0,0.01142]
[1646312940525,0.10316,43698.0,43692.0,0.01142]
[1646312940975,0.10316,43698.0,43692.0,0.01942]
[1646312941179,0.37799362,43698.0,43692.0,0.01942]
[1646312942173,0.37799362,43698.0,43692.0,0.01142]
[1646312942773,0.37799362,43698.0,43692.0,0.01842]
[1646312942975,0.37799362,43698.0,43692.0,0.007]
[1646312944076,0.37799362,43698.0,43693.0,0.00129433]
[1646312944278,0.3,43697.0,43693.0,0.00129433]
[1646312944533,0.515199,43696.0,43693.0,0.00129433]
[1646312945333,0.10210493,43694.0,43693.0,0.00129433]
[1646312945533,0.14800493,43694.0,43693.0,0.00129433]
[1646312946635,0.44800493,43694.0,43693.0,0.00129433]
[1646312946834,0.44800493,43694.0,43682.0,0.15526785]
[1646312947035,0.057269,43690.0,43679.0,0.13758]
[1646312947236,0.114546,43687.0,43679.0,0.13758]
[1646312947434,0.114546,43687.0,43677.0,0.05726778]
[1646312947638,0.103169,43690.0,43677.0,0.05726778]
[1646312947835,0.103169,43690.0,43678.0,0.354764]
[1646312948037,0.103169,43690.0,43677.0,0.05726778]
[1646312948038,0.403169,43690.0,43677.0,0.05726778]
[1646312948286,0.028001,43688.0,43673.0,0.118]
[1646312948483,0.103179,43689.0,43672.0,0.61668]
[1646312948484,0.0459,43687.0,43672.0,0.61668]
[1646312948683,0.0459,43686.0,43677.0,0.006]
[1646312948886,0.23542365,43683.0,43677.0,0.006]
[1646312949087,0.057281,43684.0,43678.0,0.19596676]
[1646312949285,0.0459,43684.0,43678.0,0.19596676]
[1646312949884,0.0459,43684.0,43677.0,0.3]
[1646312950086,0.103174,43684.0,43676.0,0.19269835]
[1646312950289,0.103174,43684.0,43677.0,0.3]
[1646312951084,0.103174,43684.0,43678.0,0.18337222]
[1646312951286,0.103174,43684.0,43677.0,0.3]
[1646312951884,0.103174,43684.0,43676.0,0.19269835]
[1646312952117,0.36423555,43684.0,43676.0,0.19269835]
[1646312952317,0.36423555,43684.0,43680.0,0.20923875]
[1646312952521,0.30696155,43684.0,43676.0,0.19269835]
[1646312952719,0.30696155,43684.0,43677.0,0.354764]
[1646312953117,0.17696155,43684.0,43677.0,0.354764]
[1646312953316,0.17696155,43684.0,43676.0,0.19269835]
[1646312953517,0.23423555,43684.0,43676.0,0.19269835]
[1646312953717,0.34879055,43684.0,43676.0,0.19269835]
[1646312954018,0.29151155,43684.0,43676.0,0.19269835]
[1646312954816,0.23423755,43684.0,43677.0,0.354764]
[1646312955015,0.0459,43687.0,43676.0,0.19269835]
[1646312955216,0.0459,43687.0,43676.0,0.30722436]
[1646312955620,0.03462674,43694.0,43676.0,0.30722436]
[1646312955883,0.354764,43693.0,43684.0,0.20067956]
[1646312956082,0.03462674,43694.0,43687.0,0.20815341]
[1646312956289,0.03462674,43694.0,43688.0,0.354764]
[1646312956884,0.03462674,43694.0,43693.0,0.354764]
[1646312957289,0.05726,43695.0,43694.0,0.56770786]
[1646312958089,0.0008573,43702.0,43697.0,0.20215069]
[1646312958289,0.0008573,43702.0,43699.0,0.23558468]
[1646312958486,0.057248,43703.0,43699.0,0.23558468]
[1646312959088,0.057248,43703.0,43695.0,0.13758]
[1646312959536,0.057248,43704.0,43697.0,0.21603286]
[1646312959737,0.164495,43707.0,43701.0,0.1693802]
[1646312959936,0.114495,43707.0,43701.0,0.1693802]
[1646312960639,0.25236287,43709.0,43701.0,0.1713802]
[1646312960640,0.057242,43708.0,43701.0,0.1713802]
[1646312961039,0.003,43710.0,43701.0,0.1713802]
[1646312961040,0.00021503,43706.0,43701.0,0.1713802]
[1646312961640,0.00021503,43706.0,43702.0,0.654764]
[1646312961845,0.00021503,43706.0,43705.0,0.632344]
[1646312962039,0.003,43710.0,43705.0,0.792344]
[1646312962241,0.003,43710.0,43707.0,0.27158379]
[1646312962439,0.003,43710.0,43708.0,0.295]
[1646312962640,0.003,43710.0,43709.0,0.13758]
[1646312962843,0.003,43710.0,43709.0,0.43758]
[1646312963672,8.789e-05,43712.0,43710.0,1.0]
[1646312963877,8.789e-05,43712.0,43711.0,0.3]
[1646312964477,0.03706056,43718.0,43711.0,0.3]
[1646312964674,0.03706056,43718.0,43716.0,0.13680328]
[1646312964874,0.03706056,43718.0,43716.0,0.01814212]
[1646312965076,0.03706056,43718.0,43711.0,0.304]
[1646312965278,0.354764,43717.0,43711.0,0.004]
[1646312965579,0.48662188,43717.0,43711.0,0.004]
[1646312965773,0.028001,43715.0,43711.0,0.004]
[1646312966172,0.057243,43715.0,43711.0,0.004]
[1646312966381,0.00021938,43716.0,43706.0,0.01814212]
[1646312966382,0.354764,43714.0,43706.0,0.01814212]
[1646312966574,0.00021938,43716.0,43707.0,0.18926819]
[1646312966774,0.09429256,43718.0,43707.0,0.18926819]
[1646312967010,0.09429256,43718.0,43706.0,0.005]
[1646312967011,0.03706056,43718.0,43706.0,0.005]
[1646312967214,0.00021939,43712.0,43706.0,0.005]
[1646312968012,0.057237,43715.0,43702.0,0.47107536]
[1646312968313,0.00021939,43711.0,43702.0,0.47107536]
[1646312968515,0.00021939,43711.0,43704.0,0.23130549]
[1646312968713,0.00021939,43711.0,43702.0,0.47107536]
[1646312968913,0.057241,43710.0,43702.0,0.47107536]
[1646312969112,0.057241,43710.0,43702.0,0.3]
[1646312969512,0.0002103,43708.0,43702.0,0.3]
[1646312969717,0.0002103,43708.0,43703.0,0.20410272]
[1646312970514,0.12379106,43715.0,43703.0,0.20410272]
[1646312970515,0.157235,43715.0,43703.0,0.20410272]
[1646312970772,0.057235,43715.0,43703.0,0.004]
[1646312970972,0.0002103,43708.0,43705.0,0.05723362]
[1646312971372,0.0002103,43708.0,43706.0,0.3]
[1646312971572,0.00084107,43714.0,43705.0,0.05723362]
[1646312971772,0.057235,43715.0,43707.0,0.175202]
[1646312971972,0.0002103,43709.0,43707.0,0.175202]
[1646312972371,0.0002103,43709.0,43705.0,0.05723362]
[1646312972572,0.0002103,43709.0,43702.0,0.3]
[1646312972776,0.25503954,43712.0,43707.0,0.003]
[1646312973174,0.00020369,43709.0,43707.0,0.003]
[1646312973974,0.25503954,43712.0,43705.0,0.16336492]
[1646312974374,0.00020369,43710.0,43705.0,0.16336492]
[1646312974614,0.00020369,43710.0,43705.0,0.16736492]
[1646312975213,0.25503954,43712.0,43705.0,0.16736492]
[1646312975416,0.25503954,43712.0,43706.0,0.27952067]
[1646312975617,0.00020369,43710.0,43705.0,0.36736492]
[1646312975818,0.00020369,43710.0,43706.0,0.3]
[1646312976419,0.09429056,43718.0,43706.0,0.3]
[1646312976617,0.00020395,43710.0,43708.0,0.24836412]
[1646312976817,0.00020395,43710.0,43709.0,0.20608335]
[1646312977617,0.09429056,43718.0,43709.0,0.20608335]
[1646312977828,0.00020394,43712.0,43710.0,0.3]
[1646312978021,0.00020394,43712.0,43709.0,0.20608335]
[1646312978298,0.05743794,43712.0,43709.0,0.20608335]
[1646312978501,0.00020394,43712.0,43709.0,0.20608335]
[1646312978697,0.00020394,43712.0,43709.0,0.20908335]
[1646312978898,0.114471,43716.0,43709.0,0.20908335]
[1646312979101,0.00020394,43713.0,43709.0,0.003]
[1646312979898,0.00020394,43713.0,43707.0,0.19858057]
[1646312980099,0.25980121,43715.0,43707.0,0.19858057]
[1646312980299,0.00020392,43713.0,43707.0,0.19858057]
[1646312981101,0.09429256,43718.0,43707.0,0.19858057]
[1646312981102,0.002,43718.0,43709.0,1.0]
[1646312981301,0.002,43718.0,43716.0,0.354764]
[1646312981501,0.002,43718.0,43717.0,0.22436737]
[1646312981703,0.002,43718.0,43717.0,0.500429]
[1646312981902,0.002,43718.0,43717.0,0.855193]
[1646312982323,0.002,43718.0,43717.0,0.500429]
[1646312982624,0.002,43718.0,43717.0,0.504429]
[1646312983025,0.002,43718.0,43717.0,0.859193]
[1646312983332,0.0198926,43730.0,43724.0,1.354764]
[1646312983526,0.001,43738.0,43729.0,0.01814212]
[1646312983724,0.001,43738.0,43730.0,0.354764]
[1646312983923,0.001,43738.0,43731.0,0.31814212]
[1646312983924,0.00079327,43736.0,43731.0,0.31814212]
[1646312984124,0.00079327,43736.0,43732.0,0.37736422]
[1646312984331,0.00079327,43736.0,43732.0,0.67736422]
[1646312984525,0.00079327,43736.0,43732.0,0.32358719]
[1646312984725,0.009156,43734.0,43732.0,0.56857938]
[1646312984924,0.009156,43734.0,43732.0,0.59152938]
[1646312985128,0.03370377,43737.0,43732.0,0.56857938]
[1646312985129,0.00019833,43735.0,43732.0,0.56857938]
[1646312985968,0.00019833,43735.0,43732.0,0.56357938]
[1646312986169,0.03370377,43737.0,43732.0,0.56357938]
[1646312986364,0.03370377,43737.0,43732.0,0.53999219]
[1646312986365,0.00019833,43735.0,43732.0,0.53999219]
[1646312986765,0.00019833,43735.0,43732.0,0.23999219]
[1646312986967,0.00019833,43735.0,43732.0,0.53999219]
[1646312987467,0.00019095,43735.0,43731.0,0.0753272]
[1646312987766,0.00019095,43735.0,43728.0,0.05720378]
[1646312987973,0.00019095,43735.0,43729.0,0.354764]
[1646312988173,0.00019095,43735.0,43731.0,0.01814212]
[1646312988367,0.00019095,43735.0,43734.0,0.02295]
[1646312988669,0.001,43738.0,43735.0,0.354764]
[1646312989067,0.001,43738.0,43737.0,0.354764]
[1646312989267,0.001,43738.0,43737.0,0.50612779]
[1646312989524,0.001,43738.0,43737.0,0.47431379]
[1646312990124,0.001,43738.0,43737.0,0.63003904]
[1646312990324,0.001,43738.0,43737.0,1.00272516]
[1646312990723,0.001,43738.0,43737.0,1.00772516]
[1646312991927,0.001,43738.0,43737.0,1.00272516]
[1646312992524,0.001,43738.0,43737.0,1.20272516]
[1646312993372,0.001,43738.0,43737.0,1.17977516]
[1646312993572,0.001,43738.0,43737.0,1.00108991]
[1646312993774,0.001,43738.0,43737.0,1.07268612]
[1646312994376,0.001,43738.0,43737.0,0.754544]
[1646312994595,0.001,43738.0,43737.0,0.4]
[1646312996776,0.001,43738.0,43737.0,0.405]
[1646312998224,0.001,43738.0,43737.0,0.4]
[1646313004079,0.355544,43738.0,43737.0,0.4]
[1646313004281,0.63045366,43738.0,43737.0,0.4]
[1646313006422,0.63045366,43738.0,43737.0,0.29937639]
[1646313010082,1.2170783,43738.0,43737.0,0.29937639]
[1646313010280,0.91851338,43738.0,43737.0,0.29937639]
[1646313011582,0.97572838,43738.0,43737.0,0.24835555]
[1646313011785,0.83356866,43738.0,43737.0,0.24835555]
[1646313012016,0.77135366,43738.0,43737.0,0.24835555]
[1646313012620,0.67135366,43738.0,43737.0,0.24835555]
[1646313014220,0.67135366,43738.0,43737.0,0.22835555]
[1646313014622,0.67135366,43738.0,43737.0,0.22605979]
[1646313015124,1.02856766,43738.0,43737.0,0.22605979]
[1646313015321,1.26042554,43738.0,43737.0,0.22605979]
[1646313016779,1.26342554,43738.0,43737.0,0.22605979]
[1646313018079,0.96042554,43738.0,43737.0,0.22377018]
[1646313018277,0.82856766,43738.0,43737.0,0.22377018]
[1646313018678,0.72545366,43738.0,43737.0,0.22377018]
[1646313019076,0.62545366,43738.0,43737.0,0.22377018]
[1646313019276,0.62545366,43738.0,43737.0,0.21690134]
[1646313022841,0.62545366,43738.0,43737.0,0.16195062]
[1646313024777,0.63045366,43738.0,43737.0,0.16195062]
[1646313026479,0.73045366,43738.0,43737.0,0.16195062]
[1646313027625,0.87045366,43738.0,43737.0,0.16195062]
[1646313028227,0.86545366,43738.0,43737.0,0.16195062]
[1646313028429,0.91135366,43738.0,43737.0,0.16195062]
[1646313028629,0.178401,43734.0,43723.0,0.3]
[1646313028827,0.178401,43734.0,43720.0,0.1139]
[1646313028828,0.350537,43732.0,43720.0,0.1139]
[1646313029025,0.350537,43732.0,43718.0,0.3624]
[1646313029026,0.396437,43732.0,43718.0,0.01142]
[1646313029227,0.121175,43725.0,43710.0,0.01142]
[1646313029430,0.350537,43723.0,43713.0,0.3]
[1646313029727,0.354594,43717.0,43709.0,0.20789553]
[1646313029928,0.354594,43717.0,43710.0,0.3]
[1646313030327,0.354594,43717.0,43712.0,0.16534508]
[1646313030769,7.398e-05,43716.0,43710.0,0.3]
[1646313030976,0.05731398,43716.0,43710.0,0.306]
[1646313031170,0.117118,43715.0,43710.0,0.006]
[1646313031380,0.354594,43714.0,43710.0,0.006]
[1646313031575,0.05731398,43716.0,43710.0,0.006]
[1646313031576,0.117118,43712.0,43710.0,0.006]
[1646313031770,0.354594,43715.0,43710.0,0.006]
[1646313031970,0.35466798,43715.0,43710.0,0.006]
[1646313032172,0.25121059,43711.0,43709.0,0.01814212]
[1646313032369,0.25121059,43711.0,43707.0,0.19126847]
[1646313032770,0.25121059,43711.0,43709.0,0.006]
[1646313033971,0.0002087,43715.0,43709.0,0.006]
[1646313034173,0.05724,43716.0,43708.0,0.01814212]
[1646313034371,0.05724,43716.0,43705.0,0.2]
[1646313034372,0.354594,43714.0,43705.0,0.2]
[1646313034635,0.00021271,43715.0,43706.0,0.3]
[1646313034835,0.354594,43714.0,43708.0,0.007]
[1646313035538,0.24194319,43713.0,43708.0,0.007]
[1646313036141,0.24194319,43713.0,43706.0,0.48341499]
[1646313036937,0.24194319,43713.0,43706.0,0.49141499]
[1646313037139,0.24194319,43713.0,43706.0,0.19141499]
[1646313037341,0.24194319,43713.0,43706.0,0.49141499]
[1646313037739,0.24194319,43713.0,43706.0,0.19141499]
[1646313037941,0.24194319,43713.0,43706.0,0.49141499]
[1646313038141,0.24194319,43713.0,43706.0,0.18341499]
[1646313038373,0.24194319,43713.0,43706.0,0.48341499]
[1646313038780,0.354594,43714.0,43711.0,0.19853469]
[1646313038974,0.00995719,43718.0,43708.0,0.01814212]
[1646313038975,0.009162,43718.0,43708.0,0.01814212]
[1646313039174,0.00019881,43715.0,43708.0,0.01814212]
[1646313039573,0.00019881,43715.0,43707.0,0.01814212]
[1646313039776,0.27093542,43714.0,43707.0,0.01814212]
[1646313040382,0.27093542,43714.0,43706.0,0.48341499]
[1646313040383,0.354594,43713.0,43706.0,0.48341499]
[1646313040576,0.27093542,43714.0,43706.0,0.48341499]
[1646313040976,0.27093542,43714.0,43707.0,0.005]
[1646313042131,0.27093542,43714.0,43708.0,0.19214018]
[1646313042334,0.27093542,43714.0,43706.0,0.48341499]
[1646313042532,0.27093542,43714.0,43706.0,0.18341499]
[1646313042931,0.27093542,43714.0,43706.0,0.18941499]
[1646313043130,0.354594,43713.0,43706.0,0.18941499]
[1646313043331,0.354594,43713.0,43706.0,0.38110561]
[1646313043531,0.114494,43712.0,43706.0,0.006]
[1646313044733,0.32818142,43714.0,43710.0,0.21438985]
[1646313044734,0.057246,43714.0,43710.0,0.21438985]
[1646313044933,0.109162,43718.0,43711.0,0.3]
[1646313045132,0.009162,43718.0,43711.0,0.31814212]
[1646313045334,0.0001967,43715.0,43711.0,0.31814212]
[1646313045794,0.0001967,43715.0,43712.0,0.18860221]
[1646313046196,0.009162,43718.0,43717.0,0.18047891]
[1646313048799,0.009162,43718.0,43717.0,0.18447891]
[1646313049003,0.009162,43718.0,43717.0,0.48447891]
[1646313049204,0.009162,43718.0,43717.0,0.50262103]
[1646313050018,6.2e-05,43718.0,43717.0,0.50262103]
[1646313050220,6.2e-05,43718.0,43717.0,0.49862103]
[1646313050720,6.2e-05,43718.0,43717.0,0.19862103]
[1646313050921,6.2e-05,43718.0,43717.0,0.55321503]
[1646313051523,6.2e-05,43718.0,43717.0,0.19862103]
[1646313051726,6.2e-05,43718.0,43717.0,0.55321503]
[1646313051923,6.2e-05,43718.0,43717.0,0.19862103]
[1646313052124,6.2e-05,43718.0,43717.0,0.55321503]
[1646313052524,6.2e-05,43718.0,43717.0,0.19862103]
[1646313052725,0.03359422,43723.0,43717.0,0.01814212]
[1646313052927,0.03359422,43723.0,43717.0,0.02514212]
[1646313053126,0.03359422,43723.0,43718.0,0.20252024]
[1646313054174,0.03359422,43723.0,43719.0,0.17411604]
[1646313054772,0.03359422,43723.0,43719.0,0.47411604]
[1646313054973,0.03359422,43723.0,43719.0,0.18111604]
[1646313055174,0.03359422,43723.0,43719.0,0.23833317]
[1646313055380,0.03359422,43723.0,43721.0,0.22600716]
[1646313055573,0.03359422,43723.0,43719.0,0.23833317]
[1646313055774,0.03359422,43723.0,43719.0,0.53833317]
[1646313056174,0.03359422,43723.0,43719.0,0.47411604]
[1646313056575,0.03359422,43723.0,43719.0,0.17411604]
[1646313056881,0.03359422,43723.0,43720.0,0.28500933]
[1646313057127,0.0338163,43723.0,43720.0,0.28500933]
[1646313057725,0.0338163,43723.0,43719.0,0.17411604]
[1646313058125,0.03359422,43723.0,43719.0,0.17411604]
[1646313058525,0.0338163,43723.0,43719.0,0.17411604]
[1646313058726,0.24690293,43723.0,43719.0,0.17411604]
[1646313058926,0.0338163,43723.0,43719.0,0.18011604]
[1646313059325,0.03359422,43723.0,43719.0,0.18011604]
[1646313059529,0.0338163,43723.0,43719.0,0.18011604]
[1646313059927,0.26570758,43722.0,43719.0,0.18011604]
[1646313060127,0.26570758,43722.0,43719.0,0.17411604]
[1646313060349,0.654594,43721.0,43704.0,0.01814212]
[1646313060531,0.117118,43719.0,43706.0,0.1238]
[1646313060773,0.0459,43720.0,43706.0,0.1238]
[1646313060774,0.354594,43717.0,43706.0,0.1238]
[1646313060973,0.354594,43717.0,43713.0,0.005]
[1646313061175,0.37161562,43715.0,43713.0,0.005]
[1646313061376,0.42885862,43715.0,43713.0,0.005]
[1646313062375,0.42885862,43715.0,43707.0,0.17453449]
[1646313063577,0.42885862,43715.0,43707.0,0.19267661]
[1646313063978,0.42885862,43715.0,43707.0,0.17453449]
[1646313064649,0.37161562,43715.0,43707.0,0.17453449]
[1646313065048,0.37161562,43715.0,43707.0,0.17953449]
[1646313065848,0.06496402,43713.0,43707.0,0.005]
[1646313066050,0.06496402,43713.0,43705.0,0.2]
[1646313066051,0.117118,43710.0,43705.0,0.09598622]
[1646313066251,0.117118,43710.0,43692.0,0.01814212]
[1646313066252,0.354594,43708.0,43692.0,0.01814212]
[1646313066453,0.117118,43703.0,43692.0,0.01814212]
[1646313066649,0.05727,43704.0,43692.0,0.01814212]
[1646313066650,0.354594,43701.0,43692.0,0.01814212]
[1646313066853,0.117118,43699.0,43692.0,0.01814212]
[1646313067054,0.78473674,43699.0,43690.0,0.1156]
[1646313067252,0.78473674,43699.0,43684.0,0.1874]
[1646313067253,0.354594,43697.0,43684.0,0.1874]
[1646313067458,0.117118,43695.0,43688.0,0.01814212]
[1646313067650,0.163018,43695.0,43684.0,0.1874]
[1646313067853,0.163018,43695.0,43685.0,0.01814212]
[1646313068280,0.28104694,43688.0,43685.0,0.01814212]
[1646313068486,0.02527,43690.0,43689.0,0.13665639]
[1646313068680,0.379864,43690.0,43689.0,0.13665639]
[1646313068882,0.379864,43690.0,43689.0,0.13091578]
[1646313069280,0.437143,43690.0,43689.0,0.13091578]
[1646313069482,0.68103443,43690.0,43689.0,0.13091578]
[1646313069880,0.79559543,43690.0,43689.0,0.13091578]
[1646313070681,0.354594,43690.0,43689.0,0.13091578]
[1646313071682,0.38819932,43690.0,43689.0,0.13091578]
[1646313071885,0.64494775,43690.0,43689.0,0.13091578]
[1646313072731,0.38819932,43690.0,43689.0,0.13091578]
[1646313073355,0.38819932,43690.0,43689.0,0.32638916]
[1646313073534,0.05728,43691.0,43689.0,0.34453128]
[1646313073535,0.009168,43691.0,43689.0,0.34453128]
[1646313073730,0.009168,43691.0,43689.0,0.56649774]
[1646313073930,0.006,43695.0,43690.0,0.354594]
[1646313074129,0.006,43695.0,43694.0,0.01814212]
[1646313074326,0.03390629,43704.0,43694.0,0.20832898]
[1646313074527,0.03390629,43704.0,43699.0,0.26784861]
[1646313074927,0.03390629,43704.0,43699.0,0.52246487]
[1646313076084,0.057242,43715.0,43702.0,0.01814212]
[1646313076288,0.354594,43714.0,43702.0,0.01814212]
[1646313076485,0.354594,43714.0,43704.0,0.17985467]
[1646313077085,0.28679988,43712.0,43706.0,0.17866723]
[1646313077383,0.117118,43711.0,43706.0,0.17866723]
[1646313077785,0.217118,43711.0,43703.0,0.05724044]
[1646313079084,0.25224394,43711.0,43703.0,0.06224044]
[1646313079287,0.03512594,43711.0,43707.0,0.01814212]
[1646313079535,0.354594,43710.0,43707.0,0.01814212]
[1646313079936,0.03512594,43711.0,43707.0,0.01814212]
[1646313080136,0.03512594,43711.0,43706.0,0.2110154]
[1646313080339,0.354594,43710.0,43709.0,0.2743482]
[1646313081039,0.354594,43710.0,43709.0,0.006]
[1646313082238,0.03512594,43711.0,43707.0,0.01814212]
[1646313082940,0.03512594,43711.0,43707.0,0.006]
[1646313083138,0.03512594,43711.0,43709.0,0.21404038]
[1646313083375,0.354594,43710.0,43707.0,0.02414212]
[1646313083779,0.354594,43710.0,43707.0,0.006]
[1646313084276,0.03512594,43711.0,43704.0,0.01814212]
[1646313084576,0.03512594,43711.0,43704.0,0.24467356]
[1646313084776,0.354594,43709.0,43704.0,0.01814212]
[1646313084979,0.354594,43710.0,43704.0,0.01814212]
[1646313085776,0.4691,43710.0,43704.0,0.01814212]
[1646313085983,0.354594,43710.0,43701.0,0.21725678]
[1646313086379,0.354594,43710.0,43698.0,0.01814212]
[1646313086581,0.09237694,43711.0,43698.0,0.01814212]
[1646313086782,0.354594,43710.0,43698.0,0.21241229]
[1646313087250,0.354594,43709.0,43698.0,0.01814212]
[1646313087455,0.38224846,43710.0,43698.0,0.01814212]
[1646313087853,0.354594,43709.0,43698.0,0.01814212]
[1646313088252,0.057257,43704.0,43698.0,0.01814212]
[1646313088450,0.20329622,43703.0,43698.0,0.01814212]
[1646313088650,0.057257,43704.0,43697.0,0.25034963]
[1646313089151,0.057257,43704.0,43696.0,0.01142]
[1646313089549,0.15725,43708.0,43697.0,0.05724971]
[1646313089950,0.1,43708.0,43698.0,0.01814212]
[1646313090788,0.354594,43708.0,43698.0,0.01814212]
[1646313090988,0.354594,43708.0,43699.0,0.20626515]
[1646313091188,0.354594,43708.0,43700.0,0.2182305]
[1646313091386,0.33167963,43709.0,43700.0,0.2182305]
[1646313091593,0.117118,43708.0,43700.0,0.2182305]
[1646313091788,0.217118,43708.0,43698.0,0.01814212]
[1646313091987,0.057252,43707.0,43698.0,0.01814212]
[1646313092189,0.27443063,43709.0,43702.0,0.27313764]
[1646313092387,0.03512594,43711.0,43702.0,0.27313764]
[1646313092591,0.03512594,43711.0,43702.0,0.45363273]
[1646313092790,0.354594,43710.0,43702.0,0.01814212]
[1646313092989,0.354594,43710.0,43702.0,0.02214212]
[1646313093191,0.03512594,43711.0,43702.0,0.02214212]
[1646313093192,0.117118,43709.0,43702.0,0.02214212]
[1646313093392,0.354594,43710.0,43703.0,0.05724139]
[1646313093591,0.03512594,43711.0,43702.0,0.02214212]
[1646313093792,0.117118,43710.0,43705.0,0.21731073]
[1646313094192,0.03512594,43711.0,43702.0,0.02214212]
[1646313094393,0.354594,43710.0,43702.0,0.01814212]
[1646313094637,0.411842,43710.0,43702.0,0.01814212]
[1646313095039,0.411842,43710.0,43702.0,0.02314212]
[1646313095240,0.117118,43708.0,43702.0,0.28944554]
[1646313095438,0.28355161,43709.0,43702.0,0.02314212]
[1646313095641,0.354594,43708.0,43702.0,0.02314212]
[1646313095839,0.354594,43708.0,43702.0,0.005]
[1646313096239,0.354594,43708.0,43697.0,0.16212852]
[1646313096441,0.28355161,43709.0,43697.0,0.42346624]
[1646313096640,0.057255,43706.0,43697.0,0.42346624]
[1646313096841,0.057255,43706.0,43700.0,0.01814212]
[1646313097044,0.057255,43705.0,43700.0,0.01814212]
[1646313097243,0.055055,43705.0,43700.0,0.01814212]
[1646313097443,0.055055,43705.0,43696.0,0.01142]
[1646313097645,0.169576,43705.0,43696.0,0.01142]
[1646313097844,0.05726,43702.0,43696.0,0.01142]
[1646313098280,0.05726,43702.0,43697.0,0.17734612]
[1646313098481,0.05726,43702.0,43697.0,0.42169914]
[1646313099185,0.169576,43705.0,43697.0,0.42169914]
[1646313099186,0.055055,43705.0,43697.0,0.42169914]
[1646313099484,0.057254,43706.0,43697.0,0.42169914]
[1646313099685,0.057254,43706.0,43697.0,0.40355702]
[1646313100282,0.057254,43706.0,43700.0,0.01814212]
[1646313101187,0.057254,43706.0,43697.0,0.40355702]
[1646313101383,0.057254,43706.0,43697.0,0.42169914]
[1646313101584,0.057254,43706.0,43697.0,0.24435302]
[1646313102031,0.354594,43705.0,43697.0,0.24435302]
[1646313102632,0.057254,43706.0,43697.0,0.24435302]
[1646313103233,0.354594,43705.0,43699.0,0.19260142]
[1646313103835,0.057254,43706.0,43697.0,0.24435302]
[1646313103836,0.354594,43704.0,43697.0,0.24435302]
[1646313104035,0.354594,43705.0,43697.0,0.24435302]
[1646313104433,0.057254,43706.0,43697.0,0.24435302]
[1646313104634,0.057254,43706.0,43697.0,0.24419802]
[1646313108087,0.25972762,43704.0,43697.0,0.24419802]
[1646313108286,0.117118,43703.0,43697.0,0.24419802]
[1646313108686,0.057259,43702.0,43697.0,0.01814212]
[1646313109937,0.25972762,43704.0,43697.0,0.01814212]
[1646313110139,0.354594,43702.0,43697.0,0.01814212]
[1646313110336,0.354594,43703.0,43697.0,0.01814212]
[1646313110736,0.25972762,43704.0,43697.0,0.01814212]
[1646313110737,0.354594,43701.0,43697.0,0.01814212]
[1646313111036,0.057259,43702.0,43697.0,0.01814212]
[1646313111238,0.354594,43701.0,43697.0,0.01814212]
[1646313111436,0.37424962,43704.0,43697.0,0.01814212]
[1646313111640,0.354594,43703.0,43697.0,0.01814212]
[1646313111835,0.25972762,43704.0,43697.0,0.01814212]
[1646313111836,0.354594,43702.0,43697.0,0.01814212]
[1646313112041,0.25972762,43704.0,43697.0,0.01814212]
[1646313112236,0.25972762,43704.0,43698.0,0.22234651]
[1646313112436,0.354594,43703.0,43698.0,0.22234651]
[1646313113037,0.354594,43703.0,43698.0,0.22834651]
[1646313113285,0.354594,43703.0,43698.0,0.006]
[1646313113789,0.117118,43701.0,43698.0,0.006]